Cogmind - Beta 14 @@@ ROGUE MODE // 2025.03.10 @ 23:11:16 Player: puppuppit Result: Destroyed by 6K-RO4(R) with Subdweller Laser Performance ------------- Evolutions (0) 0 Regions Visited (2) 400 Robots Destroyed (48) 240 Value Destroyed (1019) 1019 Prototype IDs (5) 100 Alien Tech Used (0) 0 Bonus (47) 47 TOTAL SCORE: 1806 Bonus ------- High Alert Combat Kills 47 Cogmind --------- Core Integrity 0/250 Matter 24/300 Energy 96/100 System Corruption 0% Temperature Cool (6) Movement Rolling (110) Ox2 Location -10/Subcaves Parts ------- > --- POWER (1) -------- (None) > --- PROPULSION (2) --- Wheel Wheel > --- UTILITY (2) ------ High-capacity Storage Unit Core Shielding > --- WEAPON (2) ------- Light Cannon Light Cannon > --- INVENTORY (20) --- Subdweller Power Source Subdweller Power Source Subdweller Power Source Wheel Compact Wheel Medium Matter Pod (0) High-capacity Matter Pod (0) High-capacity Matter Pod (0) Subdweller Optics Subdweller Optics Subdweller Optics Core Shielding Core Shielding Core Shielding Subdweller Laser Subdweller Laser Subdweller Machine Gun Light Cannon Light Cannon Shrapnel Trap Peak State ------------ > --- POWER ------------ Light Ion Engine > --- PROPULSION ------- Wheel Wheel > --- UTILITY ---------- High-capacity Storage Unit Hacking Suite > --- WEAPON ----------- Light Cannon Light Cannon > --- INVENTORY -------- Light Ion Engine Wheel Wheel Wheel Wheel Compact Wheel Large Storage Unit Medium Matter Pod High-capacity Matter Pod Improved Terrain Scanner Core Shielding Core Shielding Core Shielding Weapon Shielding Light Cannon Light Cannon Light Cannon Light Cannon [Rating: 11] Favorites ----------- Power Light Ion Engine Engine Light Ion Engine Propulsion Wheel Wheel Wheel Utility High-capacity Storage Unit Device Improved Terrain Scanner Storage High-capacity Storage Unit Hackware Hacking Suite Protection Core Shielding Weapon Light Cannon Energy Gun Medium Laser Ballistic Gun Assault Rifle Ballistic Cannon Light Cannon Launcher Subdweller Shrapnel Launcher Build | -11 -10 -10 ------- Run | Yrd Mat Sub Slots Evolved . | . . . Power . | . . . Propulsion . | . . . Utility . | . . . Weapon . | . . . Parts Attached 25 | 6 11 8 Power 2 | . 2 . Engine 2 | . 2 . Core . | . . . Reactor . | . . . Propulsion 7 | 2 1 4 Treads . | . . . Leg . | . . . Wheel 7 | 2 1 4 Hover . | . . . Flight . | . . . Utility 8 | 2 6 . Device 1 | 1 . . Storage 3 | 1 2 . Processor . | . . . Hackware 1 | . 1 . Protection 3 | . 3 . Artifact . | . . . Weapon 8 | 2 2 4 Energy Gun 1 | 1 . . Energy Cannon . | . . . Ballistic Gun 1 | 1 . . Ballistic Cannon 5 | . 2 3 Launcher 1 | . . 1 Special Weapon . | . . . Impact Weapon . | . . . Slashing Weapon . | . . . Piercing Weapon . | . . . Special Melee Weapon . | . . . Unidentified Prototypes . | . . . Parts Lost 5 | . . 5 Power 1 | . . 1 Propulsion 1 | . . 1 Utility . | . . . Weapon 3 | . . 3 Highest Loss Streak 2 | . . 2 To Critical Strikes . | . . . Average Slot Usage (%) 94 | . 96 92 Engine 12 | . 10 12 Wheel 24 | . 28 22 Device 1 | . 2 . Storage 14 | . 14 14 Hackware 2 | . 7 . Protection 10 | . 4 14 Ballistic Cannon 26 | . 25 27 Peak Build Rating 11 | 9 11 10 Average Rating 8 | 6 9 8 On Entrance 6 | . 9 9 Naked Turns . | . . . Heaviest Build 55 | 10 50 55 Greatest Support 20 | 20 20 20 Greatest Overweight (x) 5 | . 2 5 Average Overweight (x) 2 | . 1 2 Largest Inventory Capacity 20 | 8 20 20 Average Capacity 17 | 7 15 20 Most Carried 20 | 6 20 20 Average Carried 16 | 1 14 19 Final Capacity 20 | 8 20 20 Final Carried 20 | 6 20 20 Class Distribution -------------------- 100% | Mutant Dominant Class ---------------- Mutant | -10/Materials Mutant | -10/Subcaves Resources | -11 -10 -10 ----------- Run | Yrd Mat Sub Matter Collected 2045 | 290 1007 748 Remotely . | . . . Salvage Created 1156 | 102 826 228 Parts 99 | 20 59 20 Haulers Intercepted 2 | . 2 . Recyclers Shooed 2 | 1 1 . Parts Field Recycled . | . . . Retrieved Matter . | . . . Parts Self-Destructed 5 | . . 5 Prevented . | . . . Kills | -11 -10 -10 ------- Run | Yrd Mat Sub Combat Hostiles Destroyed 29 | . 17 12 Cannons 25 | . 17 8 AOE 4 | . . 4 Classes Destroyed 10 | 1 8 1 Worker 2 | . 2 . Builder 1 | . 1 . Tunneler 7 | 5 2 . Hauler 2 | . 2 . Recycler 3 | . 3 . Operator 2 | . 2 . Watcher 2 | . 2 . Swarmer 8 | . 6 2 Grunt 11 | . 11 . Subdweller 10 | . . 10 Best Kill Streak 5 | 4 5 5 Combat Bots Only 5 | . 3 5 Max Kills in Single Turn 1 | 1 1 1 Gunslinging . | . . . Exploded 1 | . . 1 Melee . | . . . Uniques/NPCs Destroyed . | . . . Combat | -11 -10 -10 -------- Run | Yrd Mat Sub Hostile Shots Fired 89 | . 49 40 Missed 23 | . 15 8 Damage Taken 1071 | . 295 776 Core 251 | . 87 164 Absorbed by Shields . | . . . Redirected to Shielding 33 | . . 33 Core Remaining (%) 100 | 100 . . Volleys Fired 186 | 10 66 110 Largest 2 | 2 2 2 Hottest 75 | 70 70 75 Shots Fired 351 | 20 132 199 Gun 30 | 20 10 . Cannon 311 | . 122 189 Launcher 10 | . . 10 Special . | . . . Kinetic 336 | 10 127 199 Thermal 15 | 10 5 . Explosive . | . . . Electromagnetic . | . . . Robot Hit Streak 16 | 3 11 16 Robot Miss Streak 6 | 2 6 3 Penetration Max . | . . . Secondary Targets . | . . . Shots Hit Robots 125 | 10 68 47 Core Hits 60 | 6 33 21 Critical Kills . | . . . Critical Parts Destroyed . | . . . Critical Strikes 3 | . 1 2 Blast 3 | . 1 2 Melee Attacks . | . . . Impact . | . . . Slashing . | . . . Piercing . | . . . Sneak Attacks . | . . . Combat Hostiles . | . . . Follow-up Attacks . | . . . Damage Inflicted 2665 | 136 1209 1320 Guns 197 | 136 61 . Cannons 1837 | . 1148 689 Explosions 631 | . . 631 Melee . | . . . Ramming . | . . . Kinetic 2578 | 73 1185 1320 Thermal 87 | 63 24 . Explosive . | . . . Electromagnetic . | . . . Impact . | . . . Slashing . | . . . Piercing . | . . . Highest Corruption . | . . . Average Corruption . | . . . Corruption Purged . | . . . Corruption Blocked . | . . . Overload Shots . | . . . Overflow Damage 14 | . 7 7 Projectiles 7 | . 7 . Explosions 7 | . . 7 Melee . | . . . Knockbacks 11 | . 5 6 Impact . | . . . Kinetic 11 | . 5 6 Secondary . | . . . Self-Inflicted Damage 91 | . . 91 Shots 3 | . . 3 Rammed . | . . . Targets Rammed . | . . . Kicked . | . . . Crushed . | . . . Highest Temperature 74 | . 74 . Average Temperature 16 | . 16 . Received Heat Transfer 192 | . 54 138 Siege Activations . | . . . Robots Corrupted . | . . . Combat Hostiles . | . . . Parts Fried . | . . . Impact Corruptions . | . . . Robots Melted . | . . . Combat Hostiles . | . . . Parts Melted . | . . . Heat Transferred 259 | 185 74 . Parts Sabotaged . | . . . Parts Stolen . | . . . Parts Stripped . | . . . Power Chain Reactions . | . . . Alert | -11 -10 -10 ------- Run | Yrd Mat Sub Peak Influence 513 | 25 513 . Initial 16 | . 16 . Average 310 | 10 337 . Maximum Alert Level 2 | . 2 . Low Security (%) 20 | 100 13 . Level 1 57 | . 63 . Level 2 21 | . 23 . Level 3 . | . . . Level 4 . | . . . Level 5 . | . . . High Security . | . . . Max Security . | . . . Squads Dispatched 4 | . 4 . Investigation 2 | . 2 . Extermination . | . . . Reinforcement 2 | . 2 . Assault . | . . . Garrison . | . . . Intercept . | . . . Searches Triggered . | . . . Construction Impeded . | . . . Haulers Reinforced . | . . . Active Scanning Responses . | . . . Cargo Convoy Interrupts . | . . . Stealth | -11 -10 -10 --------- Run | Yrd Mat Sub Distress Signals 1 | . 1 . Communications Jammed . | . . . Distress Signals . | . . . Times Spotted 43 | . 28 15 Peak Tracking Total 5 | . 5 4 Tactical Retreats 6 | . 4 2 Traps | -11 -10 -10 ------- Run | Yrd Mat Sub Traps Triggered . | . . . Indirectly . | . . . Trap Hack Attempts . | . . . Triggered . | . . . Disarmed . | . . . Reprogrammed . | . . . Reused . | . . . Traps Extracted . | . . . Installed . | . . . Triggered . | . . . Most Traps Carried 1 | . . 1 Machines | -11 -10 -10 ---------- Run | Yrd Mat Sub Machines Disabled 1 | . 1 . Max in Single Turn 1 | . 1 . Machines Repaired . | . . . Machines Dismantled . | . . . Machines Sabotaged . | . . . Overloaded Fab Kills . | . . . Hacking | -11 -10 -10 --------- Run | Yrd Mat Sub Machines Accessed 8 | . 5 3 Terminals 5 | . 5 . Fabricators . | . . . Repair Stations . | . . . Recycling Units . | . . . Scanalyzers . | . . . Garrison Access . | . . . Total Hacks 26 | . 19 7 Successful 14 | . 7 7 Failed 11 | . 11 . Catastrophic 2 | . 2 . Database Lockouts 1 | . 1 . Manual 13 | . 13 . Terminals 19 | . 19 . Fabricators . | . . . Repair Stations . | . . . Recycling Units . | . . . Scanalyzers . | . . . Garrison Access . | . . . Terminal Hacks 11 | . 4 7 Record 5 | . . 5 Robot Analysis 1 | . 1 . Prototype ID Bank 2 | . 2 . Open Door 1 | . . 1 Terminal Index 1 | . 1 . Release Object 1 | . . 1 Fabricator Hacks . | . . . Repair Station Hacks . | . . . Recycling Unit Hacks . | . . . Scanalyzer . | . . . Garrison Access Hacks . | . . . Unauthorized Hacks 3 | . 3 . Terminals 3 | . 3 . Botnet 3 | . 3 . Fabricators . | . . . Repair Stations . | . . . Recycling Units . | . . . Scanalyzers . | . . . Garrison Access . | . . . Data Cores Recovered . | . . . Used . | . . . Hacking Detections 5 | . 5 . Full Trace Events 3 | . 3 . Feedback Events . | . . . Feedback Blocked . | . . . Robot Schematics Acquired . | . . . Robots Built . | . . . Authchips . | . . . Time . | . . . Total Robot Build Rating . | . . . Part Schematics Acquired . | . . . Parts Built . | . . . Authchips . | . . . Time . | . . . Total Part Build Rating . | . . . Parts Repaired . | . . . Time . | . . . Parts Recycled . | . . . Recycled Matter . | . . . Retrieved Matter . | . . . Retrieved Components . | . . . Parts Scanalyzed . | . . . Part Schematics Acquired . | . . . Parts Damaged . | . . . Bothacking | -11 -10 -10 ------------ Run | Yrd Mat Sub Used RIF Installer . | . . . Robots Hacked . | . . . Non-combat . | . . . Combat . | . . . Robot Hacks Applied . | . . . Relay Couplers Released . | . . . Fabnet Peak Effective % . | . . . Robots Rewired . | . . . Allies Hacked . | . . . Hacks Repelled . | . . . Allies | -11 -10 -10 -------- Run | Yrd Mat Sub Total Allies . | . . . Largest Group . | . . . Highest-Rated Group . | . . . Highest-Rated Ally . | . . . Total Orders . | . . . Ally Attacks . | . . . Total Damage . | . . . Kills . | . . . Allies Corrupted . | . . . Allies Melted . | . . . Intel | -11 -10 -10 ------- Run | Yrd Mat Sub Robot Analysis Total 1 | . 1 . Derelict Logs Recovered . | . . . Drone Launches . | . . . Drone Recoveries . | . . . Exploration | -11 -10 -10 ------------- Run | Yrd Mat Sub Turns Passed 2683 | 94 1019 1570 Spaces Moved 1775 | 63 710 1002 Core 2 | 2 . . Treads . | . . . Legs . | . . . Wheels 1773 | 61 710 1002 Hover . | . . . Flight . | . . . Fastest Speed 50 | 50 80 110 Average Speed 110 | 79 98 121 Slowest Speed 155 | 80 110 155 Overloaded Moves . | . . . Propulsion Burnouts . | . . . Robots Hopped . | . . . Cave-ins Triggered . | . . . Exploration Rate (%) 40 | 3 81 38 Regions Visited 2 Branch Regions 1 Pre-discovered Areas 1 | . . 1 Known Exits Taken . | . . . Unknown Exits Taken 2 | 1 1 . Scrap Searched 4 | . . 4 Spaces Dug 4 | . . 4 Terrain Destroyed 151 | . . 151 Melee . | . . . Projectile 16 | . . 16 AOE 135 | . . 135 Terrain Rammed . | . . . Walls Destroyed . | . . . Machines Disabled . | . . . Actions | -11 -10 -10 --------- Run | Yrd Mat Sub Total 2142 | 84 895 1163 Wait 102 | . 85 17 Move 1773 | 62 709 1002 Hop . | . . . Pick Up 37 | 6 16 15 Fast Attach 9 | 6 3 . Attach 4 | . . 4 Detach 1 | . 1 . Swap 12 | . 8 4 Drop 18 | . 7 11 Fire 186 | 10 66 110 Melee . | . . . Ram . | . . . Kick . | . . . Crush . | . . . Escape Stasis . | . . . Rewire . | . . . Trap . | . . . Miscellaneous . | . . . Route ------- -11/Scrapyard -10/Materials (discovered 5 exits: [*Mat x2] / [*Min x2] / *Sub) -10/Subcaves (discovered 2 exits: [*Mat] / [*Rec]) History --------- Turn | Location | Event 9 | -11/Scrapyard | Discovered new exit (range 16) 95 | -11/Scrapyard | Entered Materials 154 | -10/Materials | Central database locked down 322 | -10/Materials | Discovered new exit (range 8) 334 | -10/Materials | Build established: Mutant 376 | -10/Materials | Discovered new exit (range 16) 655 | -10/Materials | Discovered new exit (range 10) 883 | -10/Materials | Discovered new exit (range 16) 1006 | -10/Materials | Discovered new exit (range 11) 1114 | -10/Materials | Entered Subcaves 1367 | -10/Subcaves | Ambushed by Subdweller buried in earth 1530 | -10/Subcaves | Discovered new exit (range 12) 1572 | -10/Subcaves | Shifting Twisted Machinery released Hvy. Battle Rifle 1572 | -10/Subcaves | Shifting Twisted Machinery released Mak. System Restoration Module 1683 | -10/Subcaves | Disturbed a concealed Subdweller 1719 | -10/Subcaves | A swath of the cavern ceiling suddenly collapsed 1822 | -10/Subcaves | Visited Clippyterm 1825 | -10/Subcaves | Learned location of Section 7 (-2) 1825 | -10/Subcaves | Learned Factory stockpile data 1923 | -10/Subcaves | Ambushed by Subdweller buried in earth 1929 | -10/Subcaves | Ambushed by Subdweller buried in earth 1931 | -10/Subcaves | Ambushed by Subdweller buried in earth 1931 | -10/Subcaves | Ambushed by Subdweller buried in earth 1931 | -10/Subcaves | Ambushed by Subdweller buried in earth 1933 | -10/Subcaves | Core integrity fell below 50% 1937 | -10/Subcaves | Ambushed by Subdweller buried in earth 1994 | -10/Subcaves | Core integrity fell below 20% 2243 | -10/Subcaves | Discovered new exit (range 13) 2684 | -10/Subcaves | Destroyed by 6K-RO4(R) with Subdweller Laser Last Messages --------------- 02565_ Extracted 107 matter. 02565_ Acquired Hcp. Matter Pod. 02566_ 6C-YAC(R) Sub. Optics blasted off. 02566_ 6C-YAC(R) knocked back. 02567_ Lgt. Ion Engine destroyed. 02572_ QP-FXU(R) knocked back. 02573_ Subatomizers dissect the Sub. Optics. 02575_ QP-FXU(R) Sub. Laser blasted off. 02578_ 6C-YAC(R) destroyed. 02581_ QP-FXU(R) destroyed. 02587_ Acquired 19 matter. 02589_ Acquired Sub. Optics. 02596_ Acquired 6 matter. 02598_ Acquired Sub. Optics. 02599_ Acquired 5 matter. 02600_ Acquired 10 matter. 02602_ Acquired Sub. Laser. 02605_ Dropped Weapon Shielding. 02606_ Acquired Sub. Laser. 02610_ Acquired 1 matter. Map ----- +----------------------------------------------------+ | ?????????????????????????????????????????????? | | ?????????????????????????????????????????????? | | ?????????????????????????????????????????????? | | ?????????????????????????????????????????????? | | ?????????????????????????????????????????????? | | ?????????????????????????????????????????????? | | ?????????????????????????????????????????????? | | ?????????????????????????????????????????????? | | ?????????????????????????????????????????????? | | ?????????????????????????????????????????????? | | ?????????????????????????????????????????????? | | ?????????????????????????????????????????????? | | ?????????????????????????? ??????????????????? | | ???????????????????????### ?#???????????????? | | ??????????????????????## ##??????????????? | | ??????????????????????# """" #??????????????? | | ??????????????????????#""""""##??????????????? | | ??????????????????????#"""""""#??????????????? | | ??????????????????????# """"#????????????????? | | ???????????????????????# ""#????????????????? | | ???????????????????????## "##???????????????? | | ????????????????????????##" "##??????????????? | | ?????????????????????????# " #??????????????? | | ?????????????????????????# ####??????????????? | | ????????????????????????##R"#????????????????? | | ????????????????????????#@ %#????????????????? | | ????????????????????????# %#????????????????? | | ????????????????????????# ##????????????????? | | ????????????????????????# #????????????????? | | ????????????????????????# ####??????????????? | | ????????????????????????# #??????????????? | | ????????????????????????## #??????????????? | | ?????????????????????????# #??????????????? | | ????????????????????????## ##??????????????? | | ???????????????????????## #???????????????? | | ???????????????????????# #???????????????? | | ???????????????????????# ##???????????????? | | ???????????????????????# #????????????????? | | ???????????????????????# #????????????????? | | ???????????????????????## ##????????????????? | | ???????????????????????## ###???????????????? | | ???????????????????????# #???????????????? | | ???????????####????##### ##???????????????? | | ???????????# ##?### #????????????????? | | ???????????## ### # ##???????????????? | | ????????????# # # #???????????????? | | ????????????# # ## ## ##???????????????? | | ????????###?# # ###### ##???????????????? | | ??????### ### # #???# #???????????????? | | ??????# ## # #???## ##???????????????? | +----------------------------------------------------+ Best States ------------- Heat Dissipation 25 Energy Generation 10 Energy Capacity 125 Matter Stores 300 Matter Capacity 300 Sight Range 16 Terrain Scan Range 16 Terrain Scan Density 10 Core Shielding 20 Weapon Shielding 33 Evasion (%) 44 Offensive Hacking 10 Item Schematics ----------------- None Robot Schematics ------------------ None Fabricated ------------ Nothing Alien Tech Used ----------------- None Achievements -------------- None Challenges ------------ None Game ------ Seed LauncherVortexRedirector Manual? 0 Play Time 00:17:13 Cumulative 190.2 hours Start 2025.03.10 @ 22:54:30 End 2025.03.10 @ 23:11:16 Sessions 1 Manual Loads 0 Difficulty Rogue Special Mode None Game No. 101 Rogue 101 Adventurer 0 Explorer 0 Win Type - Total 3 Types 1/0/1/1/0/0/0/0/0 Lore% 62 Gallery% 65 Achievement% 60 Wizard Run 0 Options --------- Layout 0 ASCII 0 Keyboard 1 Movement Vi Keybinds 0 Fullscreen 1 Font 12/Proggy Map View 83x54 Zoom Use 0% Tactical HUD 1 Map Filters NONE Filters NONE Steam 0 RUN: 75c35a89-b011-4c21-9793-63ff2661d55c